[Event "4NCL Div 2 2024-25"]
[Site "England"]
[Date "2025.01.26"]
[Round "4.32"]
[White "Pandya, Dhairya"]
[Black "Chan, Nevil"]
[Result "0-1"]
[Annotator "TA"]
[ECO "B00"]
[WhiteElo "1714"]
[BlackElo "2011"]
[PlyCount "136"]
[EventDate "2024.11.23"]
[EventType "team-tourn"]
[EventCountry "ENG"]
[SourceTitle "playchess.com"]
[Source "ChessBase"]
[SourceQuality "1"]
[TimeControl "40/6000+30:3000+30"]

{[%evp 14,136,-8,3,13,-42,-46,-56,-45,-52,19,14,41,36,31,0,0,0,0,0,0,0,56,0,29,46,77,83,129,104,151,134,136,0,0,0,44,0,0,-114,-121,-235,-252,-247,-243,-243,-253,-252,-247,-398,-393,-372,-370,-375,-358,-405,-400,-389,-382,-475,-493,-899,-509,-492,-471,-539,-540,-562,-500,-502,-491,-538,-538,-573,-643,-609,-624,-592,-583,-659,-660,-654,-602,-640,-615,-763,-738,-768,-781,-872,-843,-1021,-1016,-29979,-29980,-29981,-29982,-29982,-29983,-29984,-29985,-29985,-29986,-29987,-29987,-29988,-29988,-29988,-29989,-29990,-29991,-29991,-29992,-29992,-29992,-29992,-29992,-29993,-29994,-29994,-29994,-29994,-29995,-29995,-29996]} 1. e4 {[%emt 0:10:04]} b6 {[%emt 0:10:35]} 2. d4 {[%emt 0:06:09]} Bb7 {[%emt 0:00:21]} 3. Nc3 {[%emt 0:01:54]} e6 {[%emt 0:00:25]} 4. Nf3 {[%emt 0:01:14]} Bb4 {[%emt 0:00:46]} 5. Bd3 {[%emt 0:00:53]} Nf6 {[%emt 0:01:31]} 6. Qe2 {[%emt 0:00:33]} d5 {[%emt 0:02:48]} 7. e5 {[%emt 0:18:05]} Ne4 {[%emt 0:02:23]} 8. Bd2 {[%emt 0:00:50]} Nxd2 {[%emt 0:01:54] 8...Bxc3 is more advanced technology. B00: Queen's Fianchetto Defence, Nimzowitsch Defence.} 9. Nxd2 {[%emt 0:00:06]} (9. Qxd2 $11 c5 10. a3) 9... c5 $15 {[%emt 0:07:16]} 10. Bb5+ {[%emt 0:15:42]} Kf8 {[%emt 0:13:22] and ...a6 should not be overlooked. Black is slightly better.} 11. dxc5 {[%emt 0:10:20]} Bxc3 {[%emt 0:04:20]} (11... a6 $15 12. c6 Nxc6 (12... Bxc6 13. Bd3 $11) 13. Bxc6 Bxc6) 12. bxc3 $11 {[%emt 0:00:04]} bxc5 {[%emt 0:00:14]} 13. Rb1 {[%emt 0:09:47]} Qc7 {[%emt 0:05:56]} 14. O-O $146 {[%emt 0:08:19]} (14. c4 a6 15. Ba4 Bc6 16. Bb3 Nd7 17. f4 f5 18. exf6 gxf6 19. O-O Rg8 20. g3 Re8 21. Rbe1 d4 22. Ne4 Bxe4 23. Qxe4 f5 {½-½ Valovic,M (1968)-Londin,M (1931) SVK-chT2A 1920 2019 (1.6)}) 14... a6 {[%emt 0:03:58] Against c4} 15. Ba4 {[%emt 0:00:14]} Bc6 {[%emt 0:02:07]} 16. Bxc6 {[%emt 0:00:17]} Nxc6 {[%emt 0:00:10]} 17. f4 {[%emt 0:00:32]} g6 {[%emt 0:01:15]} ({Black should play} 17... c4 $1 $11) 18. Qf2 {[%emt 0:01:47]} ({White should play} 18. c4 $1 $14) 18... Na5 {[%emt 0:24:56]} 19. Qh4 {[%emt 0:07:04]} Qe7 {[%emt 0:00:24]} 20. Qh6+ {[%emt 0:00:16]} Ke8 {[%emt 0:01:57]} (20... Kg8 $142) 21. Rb6 {[%emt 0:00:47]} Kd7 {[%emt 0:04:26]} (21... c4 $142) 22. Rfb1 {[%emt 0:00:09] Black is weak on the dark squares} Kc7 {[%emt 0:03:20]} 23. Rd6 {[%emt 0:07:39]} (23. c4 $16) 23... Rhb8 {[%emt 0:08:55] Dancing on a razor blade.} 24. Rxb8 {[%emt 0:00:13]} (24. Qxh7 $2 Rxb1+ 25. Nxb1 Nc4 $19) 24... Kxb8 {[%emt 0:00:30] Successful Defense Black} (24... Rxb8 $5 25. Qxh7 (25. Rxa6 Nc6 $11) 25... Rb2 $16) 25. Qxh7 {[%emt 0:06:50] Nb3 is the strong threat.} (25. c4 $5 Nb7 26. Rb6 $14 (26. Rc6 dxc4 27. Nxc4 Qe8 $14)) 25... Ka7 {[%emt 0:00:17]} 26. c4 {[%emt 0:01:27] [#]} Nb7 $1 $17 {[%emt 0:04:20] Black keeps a firm grip on the game.} 27. cxd5 {[%emt 0:00:33]} Nxd6 $19 {[%emt 0:00:30]} 28. exd6 $17 {[%emt 0:00:03][%mdl 4096] Endgame KQR-KQN} Qf6 {[%emt 0:01:53]} 29. dxe6 {[%emt 0:01:43]} Qd4+ {[%emt 0:02:17]} 30. Kf1 {[%emt 0:00:08]} Qxf4+ {[%emt 0:00:32]} (30... Qxd2 $2 31. Qxf7+ (31. exf7 $2 Qxf4+ 32. Ke2 Qc4+ 33. Kd2 Qd5+ 34. Kc1 Qg5+ 35. Kd1 Qg4+ 36. Kd2 Rf8 $19) 31... Kb6 32. Qc7+ (32. Qxg6 $2 Qxf4+ 33. Ke2 Qxd6 $19) 32... Kb5 33. Qb7+ Ka5 34. Qxa8 $18) 31. Kg1 $2 {[%emt 0:01:06]} (31. Nf3 {was the only chance.} Qc4+ (31... Qxd6 32. exf7 Rf8 33. Qg7 $16) 32. Kf2 Qxe6 (32... Qxa2 $2 33. Qxf7+ Kb6 34. Qc7+ Kb5 35. Qb7+ Ka5 36. Qxa8 $18) 33. Qh4) 31... Qe3+ $19 {[%emt 0:00:42]} (31... Qxd2 32. Qxf7+ Kb6 33. Qc7+ (33. Qxg6 $2 Qe1#) 33... Kb5 34. h3 $11 (34. Qb7+ Ka5 $11)) 32. Kf1 {[%emt 0:00:06]} Qxe6 {[%emt 0:00:08]} (32... Qxd2 33. Qxf7+ Kb6 34. Qc7+ (34. Qxg6 $2 Rf8+ $19) 34... Kb5 35. Qb7+ Ka5 36. Qxa8 $11) 33. Qh4 {[%emt 0:01:26] Dodges Qf6+} Qxd6 {[%emt 0:00:47]} (33... Qxa2 $2 {is the wrong capture.} 34. Qe7+ Kb6 35. Qc7+ Kb5 36. Qb7+ Ka5 37. Qxa8 $18 (37. Nb3+ Ka4 $18)) 34. Qf2 {[%emt 0:00:07]} Rd8 {[%emt 0:00:54]} (34... Qxh2 35. Qxf7+ Kb8 36. Qg8+ Ka7 37. Qg7+ Kb8 38. Qg8+ Ka7 39. Qf7+ Kb8 40. Qg8+ $11) 35. Ke1 {[%emt 0:00:47]} f5 {[%emt 0:00:55][%cal Od8d7]} (35... Qxh2 36. Qxc5+ Kb7 37. Qb4+ Kc8 38. Qc4+ Qc7 39. Qxa6+ Kd7 40. Qf6 Re8+ (40... Qxc2 41. Qxf7+ Kc6 42. Qe6+ Kb7 43. Qe7+ Qc7 44. Qb4+ Ka6 45. Qa4+ Qa5 46. Qc4+ Kb7 47. Qf7+ Ka8 48. Qf3+ Rd5 49. Qf8+ Kb7 50. Qf7+ Kc8 51. Qg8+ Kc7 52. Qf7+ Rd7 53. Qf4+ Kb7 54. Ke2 $17) 41. Kf1) 36. h4 {[%emt 0:00:38]} Qe5+ {[%emt 0:00:20]} 37. Kd1 {[%emt 0:00:34]} (37. Kf1 $142) 37... Re8 {[%emt 0:00:44]} 38. Nb3 {[%emt 0:00:26] Dodges Qa1+} Kb6 {[%emt 0:00:33]} 39. Qd2 {[%emt 0:00:16]} c4 {[%emt 0:00:41]} 40. Qb4+ {[%emt 0:01:22]} Qb5 {[%emt 0:00:35]} 41. Qd6+ {[%emt 0:49:55]} Qc6 {[%emt 0:21:44]} 42. Qd4+ {[%emt 0:00:00]} Kc7 {[%emt 0:00:33]} 43. Na5 {[%emt 0:00:00]} Qd7 {[%emt 0:02:04]} 44. Qxd7+ {[%emt 0:00:00]} Kxd7 {[%emt 0:00:05]} 45. Nxc4 {[%emt 0:00:00] KR-KN} Re4 {[%emt 0:00:14][%csl LRc4,LRh4]} 46. Nd2 {[%emt 0:00:00]} Rxh4 {[%emt 0:00:08]} 47. Nf3 {[%emt 0:00:00]} Rh1+ {[%emt 0:03:06]} 48. Kd2 {[%emt 0:00:00]} Ke6 {[%emt 0:00:26] Prevents Ne5.} 49. Kd3 {[%emt 0:00:00]} Ra1 {[%emt 0:01:11]} 50. Nd4+ {[%emt 0:00:00]} Kf6 {[%emt 0:01:17]} 51. Kc4 {[%emt 0:00:00]} Rxa2 {[%emt 0:00:39]} 52. Kd5 {[%emt 0:00:00]} g5 {[%emt 0:01:32]} 53. c4 {[%emt 0:00:00]} Rxg2 {[%emt 0:03:42] Black mates.} 54. c5 {[%emt 0:00:00]} Rd2 {[%emt 0:00:21]} 55. c6 {[%emt 0:00:00]} Ke7 {[%emt 0:00:20]} 56. Ke5 {[%emt 0:00:00] [#]} Rxd4 $1 {[%emt 0:00:13]} 57. Kxd4 {[%emt 0:00:00] KP-KP. Black is two pawns up.} Kd6 {[%emt 0:21:28]} 58. Ke3 {[%emt 0:00:00]} a5 {[%emt 0:00:00]} 59. Kd3 {[%emt 0:00:00]} g4 {[%emt 0:00:00]} 60. Ke3 {[%emt 0:00:00]} a4 {[%emt 0:00:00]} 61. Kf4 {[%emt 0:00:00]} a3 {[%emt 0:00:00]} 62. c7 {[%emt 0:00:00]} Kxc7 {[%emt 0:00:00]} 63. Kxf5 {[%emt 0:00:00]} a2 {[%emt 0:00:00]} 64. Kxg4 {[%emt 0:00:00]} a1=Q {[%emt 0:00:00]} ({Worse is} 64... a1=B 65. Kh5 $11) 65. Kf5 {[%emt 0:00:00]} Qd4 {[%emt 0:00:00]} 66. Ke6 {[%emt 0:00:00]} Qe4+ {[%emt 0:00:00]} 67. Kf6 {[%emt 0:00:00]} Kd7 {[%emt 0:00:00]} 68. Kf7 {[%emt 0:00:00]} Qf5+ {[%emt 0:00:00] Weighted Error Value: White=0.63/Black=0.21 (precise)   Mistake:       	White=7     	Black=4      Inaccurate:     	White=2     	Black=5      OK:         	White=11    	Black=17     Best:        	White=2     	Black=4      Strong:       	---       	Black=1} 0-1